bitfinex/quotes_SOLUSD_20240624
["timestamp","ask_amount","ask_price","bid_price","bid_amount"]
[1719254399209,26.34,129.02,128.93,7.756]
[1719254400020,26.34,129.02,128.94,31.0153]
[1719254400231,26.34,129.02,128.92,19.3916]
[1719254400526,26.34,129.02,128.92,27.1478]
[1719254400828,26.34,129.02,128.91,0.34]
[1719254401026,0.34,129.02,128.95,7.7545]
[1719254401228,0.34,129.02,128.94,42.6486]
[1719254401229,0.34,129.02,128.94,50.4039]
[1719254401420,0.17,129.02,128.94,50.4039]
[1719254401610,3.5219,129.03,128.94,50.4039]
[1719254402421,3.5219,129.03,128.91,0.34]
[1719254402617,0.17,129.02,128.93,19.3903]
[1719254402918,0.34,129.02,128.92,7.7565]
[1719254403123,26.0,129.01,128.9,42.594]
[1719254403312,0.34,129.0,128.91,23.26]
[1719254403837,0.34,129.0,128.91,31.0168]
[1719254404015,0.34,129.0,128.92,7.7564]
[1719254404611,0.34,129.0,128.91,31.0171]
[1719254405721,26.0,128.95,128.84,7.7613]
[1719254405921,26.0,128.95,128.82,417.93395508]
[1719254405922,3.6919,128.94,128.82,420.73995508]
[1719254406132,0.17,128.93,128.82,414.35205508]
[1719254406429,0.17,128.93,128.83,7.762]
[1719254406631,0.17,128.93,128.83,31.022]
[1719254406840,0.17,128.93,128.84,27.1642]
[1719254407026,0.17,128.93,128.83,23.26]
[1719254407229,0.17,128.93,128.79,87.1964]
[1719254407230,0.17,128.93,128.81,19.4074]
[1719254407523,26.0,128.92,128.81,19.4074]
[1719254407719,3.5219,128.9,128.81,19.4074]
[1719254408034,0.34,128.89,128.81,19.4074]
[1719254408424,3.5219,128.9,128.81,42.6674]
[1719254408613,3.5219,128.9,128.83,23.26]
[1719254408811,3.5219,128.9,128.85,27.1621]
[1719254409825,3.5219,128.9,128.85,19.4015]
[1719254410011,3.5219,128.93,128.85,42.6615]
[1719254410217,3.5219,128.93,128.85,27.1623]
[1719254410526,3.5219,128.93,128.82,27.1683]
[1719254410719,3.5219,128.93,128.82,19.4058]
[1719254410923,26.0,128.92,128.82,27.1685]
[1719254411549,0.34,128.91,128.81,23.26]
[1719254411753,0.34,128.91,128.8,7.7637]
[1719254412049,0.34,128.91,128.79,19.4101]
[1719254412050,0.34,128.91,128.81,27.1715]
[1719254412246,0.34,128.91,128.81,42.7183]
[1719254412623,0.34,128.91,128.78,58.2358]
[1719254413035,0.34,128.91,128.8,27.1736]
[1719254413255,0.34,128.91,128.8,50.4836]
[1719254413422,0.34,128.91,128.8,27.1736]
[1719254413743,26.0,128.89,128.77,19.4133]
[1719254413929,3.5219,128.87,128.77,19.4133]
[1719254414122,3.5219,128.87,128.78,31.0749]
[1719254414436,3.5219,128.87,128.77,19.4133]
[1719254414437,3.5219,128.87,128.79,31.0745]
[1719254415149,0.17,128.86,128.78,23.31]
[1719254415436,0.34,128.86,128.79,7.7641]
[1719254415629,0.34,128.86,128.77,19.4133]
[1719254415630,3.5219,128.93,128.8,23.31]
[1719254415834,3.5219,128.93,128.81,0.17]
[1719254416035,29.5219,128.93,128.81,0.17]
[1719254416230,29.5219,128.93,128.82,27.1683]
[1719254416614,29.5219,128.93,128.82,50.4783]
[1719254417044,29.5219,128.93,128.83,23.31]
[1719254417240,0.34,128.92,128.84,7.7615]
[1719254417649,0.34,128.92,128.84,31.0715]
[1719254417849,25.21536671,128.93,128.84,31.0715]
[1719254418035,0.34,128.92,128.84,31.0715]
[1719254418543,9.89575731,128.99,128.86,7.7599]
[1719254418720,26.0,128.96,128.84,50.4742]
[1719254418927,26.0,128.96,128.84,42.7133]
[1719254419225,26.0,128.93,128.82,7.9322]
[1719254419438,26.0,128.93,128.82,0.17]
[1719254419634,26.0,128.93,128.82,8.1026]
[1719254419836,26.0,128.93,128.81,27.1703]
[1719254420134,0.34,128.92,128.82,7.7626]
[1719254420643,26.0,128.9,128.78,19.412]
[1719254420825,26.0,128.88,128.78,19.412]
[1719254421020,0.34,128.87,128.78,50.487]
[1719254422431,0.34,128.87,128.79,7.7645]
[1719254422627,0.34,128.87,128.76,0.1035264]
[1719254422628,26.0,128.86,128.76,0.1035264]
[1719254422840,0.34,128.85,128.76,0.1035264]
[1719254423156,0.34,128.85,128.76,7.8694264]
[1719254423358,0.34,128.85,128.76,0.1035264]
[1719254423529,0.34,128.85,128.76,7.8696264]
[1719254424053,0.34,128.85,128.76,0.1035264]
[1719254424424,0.34,128.85,128.76,7.8697264]
[1719254424821,0.34,128.85,128.76,0.1035264]
[1719254425344,26.0,128.84,128.76,0.1035264]
[1719254425529,0.34,128.83,128.76,0.1035264]
[1719254427324,0.34,128.83,128.74,27.1862]
[1719254427838,0.34,128.83,128.74,0.09538464]
[1719254429051,26.0,128.81,128.69,7.8656217]
[1719254429252,0.34,128.8,128.69,0.0954217]
[1719254429561,0.34,128.8,128.71,7.769]
[1719254429750,0.34,128.8,128.7,19.4247]
[1719254429951,0.34,128.8,128.7,27.1942]
[1719254430249,0.34,128.8,128.69,0.0954217]
[1719254430450,0.34,128.8,128.67,19.4283]
[1719254430451,26.0,128.78,128.68,7.7707]
[1719254430653,26.0,128.78,128.67,27.2]
[1719254430654,0.34,128.77,128.67,27.2]
[1719254430849,26.0,128.76,128.64,0.09545879]
[1719254431035,26.0,128.71,128.64,0.09545879]
[1719254431237,0.34,128.7,128.64,0.09545879]
[1719254431644,26.0,128.71,128.64,0.09545879]
[1719254432049,0.34,128.7,128.64,0.09545879]
[1719254433431,30.47,128.75,128.64,42.83885879]
[1719254433627,3.43998826,128.79,128.64,0.09545879]
[1719254433858,3.43998826,128.79,128.68,7.7708]
[1719254434152,3.43998826,128.79,128.66,19.4302]
[1719254434358,3.43998826,128.79,128.67,45.0]
[1719254435056,6.24040477,128.81,128.69,7.7705]
[1719254435354,56.16048701,128.83,128.7,45.0]
[1719254435557,44.79851978,128.83,128.7,52.7699]
[1719254435747,3.43329631,128.82,128.7,52.7698]
[1719254435932,6.86659262,128.82,128.7,76.0798]
[1719254436136,6.86659262,128.82,128.7,45.0]
[1719254436346,6.86659262,128.82,128.7,7.7698]
[1719254436558,6.86659262,128.82,128.71,45.0]
[1719254436941,14.62969262,128.82,128.71,45.0]
[1719254437248,14.62969262,128.82,128.65,41.1276]
[1719254437249,7.7645,128.8,128.65,41.1276]
[1719254437436,30.47,128.79,128.66,7.7723]
[1719254439352,0.17,128.77,128.68,45.0]
[1719254439644,0.34,128.79,128.68,45.0]
[1719254440361,0.17,128.78,128.68,45.0]
[1719254440575,0.17,128.8,128.69,7.7705]
[1719254440763,44.52869008,128.83,128.69,7.7705]
[1719254440764,36.76629008,128.83,128.71,7.7693]
[1719254441063,36.76629008,128.83,128.72,45.0]
[1719254441262,44.52859008,128.83,128.7,45.0]
[1719254441441,36.76629008,128.83,128.7,45.0]
[1719254441946,83.39629008,128.83,128.7,45.0]
[1719254442463,0.34,128.82,128.7,45.0]
[1719254442643,52.20659262,128.82,128.7,45.0]
[1719254443043,52.20659262,128.82,128.69,45.0]
[1719254443260,98.83659262,128.82,128.65,41.1275]
[1719254443743,98.83659262,128.82,128.67,19.4292]
[1719254443944,98.83659262,128.82,128.7,7.7699]
[1719254444145,98.83659262,128.82,128.68,7.771]
[1719254444444,98.83659262,128.82,128.68,19.4279]
[1719254444649,52.20659262,128.82,128.69,7.77]
[1719254444850,52.20659262,128.82,128.7,7.77]
[1719254445064,52.03659262,128.82,128.69,7.7705]
[1719254445267,7.03659262,128.82,128.7,45.0]
[1719254445572,7.03659262,128.82,128.7,72.1947]
[1719254445745,7.03659262,128.82,128.71,7.7693]
[1719254445945,7.03659262,128.82,128.72,45.0]
[1719254446450,7.03659262,128.82,128.71,45.0]
[1719254446653,53.66659262,128.82,128.71,45.0]
[1719254446867,91.63,128.81,128.71,45.0]
[1719254447077,0.17,128.8,128.71,45.0]
[1719254447261,0.34,128.8,128.71,45.0]
[1719254448250,46.97,128.8,128.67,7.7714]
[1719254448451,0.34,128.8,128.68,45.0]
[1719254448668,0.34,128.8,128.68,52.771]
[1719254448974,0.34,128.8,128.69,7.7705]
[1719254449148,0.34,128.8,128.7,45.0]
[1719254449348,0.34,128.8,128.68,72.1987]
[1719254449677,0.34,128.8,128.69,7.7704]
[1719254449850,0.34,128.8,128.7,45.0]
[1719254450352,0.34,128.8,128.69,45.0]
[1719254452572,8.1041,128.8,128.68,45.0]
[1719254452758,8.1041,128.8,128.66,31.0822]
[1719254452759,8.1041,128.8,128.67,45.0]
[1719254453065,0.34,128.8,128.67,87.7395]
[1719254453273,0.34,128.8,128.68,7.7708]
[1719254453454,0.34,128.8,128.69,45.0]
[1719254453856,6.86659262,128.82,128.7,7.7696]
[1719254454058,6.86659262,128.82,128.72,42.7305]
[1719254454257,6.29629008,128.83,128.74,42.7287]
[1719254454458,6.86659262,128.87,128.74,19.4187]
[1719254454650,6.86659262,128.87,128.75,45.0]
[1719254455157,6.86659262,128.87,128.75,52.7668]
[1719254455957,6.86659262,128.87,128.78,7.765]
[1719254455958,13.13709077,128.87,128.78,7.765]
[1719254456157,8.0301841,128.88,128.79,68.31]
[1719254456354,9.3688962,128.92,128.8,27.1732]
[1719254456573,9.3688962,128.92,128.81,45.0]
[1719254457572,9.3688962,128.92,128.8,45.0]
[1719254457783,9.3688962,128.92,128.8,64.4098]
[1719254458084,9.3688962,128.92,128.81,7.7629]
[1719254458270,9.3688962,128.92,128.82,64.4066]
[1719254458474,30.47,128.94,128.82,64.4066]
[1719254458671,30.47,128.94,128.83,7.7621]
[1719254458873,30.47,128.94,128.84,45.0]
[1719254459489,30.47,128.94,128.83,45.0]
[1719254459955,39.8388962,128.94,128.83,45.0]
[1719254460784,39.8388962,128.94,128.83,52.762]
[1719254460970,47.86374677,128.94,128.84,7.7613]
[1719254461168,9.36589938,128.95,128.85,45.0]
[1719254461373,6.07626549,128.95,128.84,0.17]
[1719254461567,9.3688962,128.98,128.86,19.4001]
[1719254461767,15.6095368,128.98,128.88,23.31]
[1719254461984,15.6095368,128.98,128.89,45.0]
[1719254462279,15.6095368,128.98,128.87,45.0]
[1719254463066,0.17,128.97,128.87,45.0]
[1719254464364,38.2245,128.96,128.83,19.4044]
[1719254464563,0.34,128.95,128.83,19.4044]
[1719254464867,0.34,128.95,128.83,50.4765]
[1719254465566,0.34,128.95,128.84,7.7613]
[1719254465766,30.47,128.96,128.85,64.402]
[1719254465987,30.47,128.96,128.86,31.0699]
[1719254466290,38.49184565,129.01,128.9,7.7578]
[1719254466581,9.3688962,129.04,128.91,52.7568]
[1719254466781,17.1183962,129.04,128.91,45.0]
[1719254467094,34.43684937,129.03,128.91,52.7571]
[1719254468363,3.96684937,129.03,128.95,7.7547]
[1719254468583,6.17243872,129.05,128.96,45.0]
[1719254469092,6.17243872,129.05,128.96,7.7537]
[1719254469384,9.3688962,129.06,128.97,45.0]
[1719254469975,9.3688962,129.06,128.96,45.0]
[1719254470179,15.60319301,129.06,128.96,45.0]
[1719254470386,15.60319301,129.06,128.96,52.7542]
[1719254470567,15.60319301,129.06,128.97,7.7536]
[1719254470775,6.23429681,129.06,128.98,45.0]
[1719254471068,9.3688962,129.09,128.98,45.0]
[1719254471280,9.3688962,129.09,128.97,45.0]
[1719254471666,17.1154962,129.09,128.97,45.0]
[1719254471868,23.36999862,129.09,128.96,45.0]
[1719254472066,30.47,129.08,128.96,45.0]
[1719254472695,15.62339862,129.09,128.97,19.554]
[1719254472992,6.25450242,129.09,128.99,7.7521]
[1719254473285,39.8388962,129.12,129.0,45.0]
[1719254473471,47.5836962,129.12,129.0,45.0]
[1719254473674,17.1141962,129.11,129.0,45.0]
[1719254474084,0.34,129.1,129.0,45.0]
[1719254474585,9.3688962,129.11,129.0,45.0]
[1719254475386,9.3688962,129.11,129.0,19.3794]
[1719254475594,9.3688962,129.11,129.01,45.0]
[1719254475966,0.34,129.1,129.01,45.0]
[1719254476368,8.086,129.1,129.01,45.0]
[1719254476584,7.7475,129.08,128.96,6.585]
[1719254476786,0.17,129.07,128.97,7.7536]
[1719254477088,9.7088962,129.1,128.98,27.1354]
[1719254477498,9.7088962,129.1,128.98,19.3825]
[1719254478002,36.50904281,129.12,129.01,7.751]
[1719254478297,255.1,129.14,129.04,7.7491]
[1719254478514,255.1,129.14,129.05,45.0]
[1719254478515,261.30154831,129.14,129.05,45.0]
[1719254478685,255.1,129.14,129.06,19.7104]
[1719254478882,3.96684937,129.19,129.07,52.7476]
[1719254479084,3.96684937,129.19,129.07,45.0]
[1719254479297,7.7418,129.17,129.07,45.0]
[1719254479708,11.70864937,129.17,129.07,45.0]
[1719254480003,7.7424,129.16,129.07,45.0]
[1719254480199,3.96684937,129.17,129.07,45.0]
[1719254480392,3.96684937,129.17,129.06,45.0]
[1719254480698,3.96684937,129.17,129.06,31.0583]
[1719254480903,6.29230268,129.19,129.08,23.31]
[1719254481087,38.49298714,129.2,129.08,23.31]
[1719254481088,30.47,129.2,129.08,23.31]
[1719254481296,3.96684937,129.21,129.09,68.31]
[1719254481497,3.96684937,129.21,129.09,45.0]
[1719254481806,46.56,129.2,129.08,45.0]
[1719254481981,3.96684937,129.21,129.08,45.0]
[1719254481982,10.24401594,129.21,129.08,45.0]
[1719254482183,10.24401594,129.21,129.1,7.7457]
[1719254482410,6.27716657,129.21,129.11,45.0]
[1719254482699,77.03,129.23,129.11,45.0]
[1719254482900,77.03,129.23,129.08,25.9941]
[1719254482901,7.7395,129.21,129.1,45.0]
[1719254483099,7.74,129.2,129.09,45.0]
[1719254483406,7.7389,129.22,129.09,45.0]
[1719254483593,7.7393,129.21,129.09,45.0]
[1719254483801,7.9093,129.21,129.08,45.0]
[1719254484181,7.74,129.2,129.08,45.0]
[1719254484502,0.17,129.19,129.06,23.31]
[1719254484704,0.17,129.21,129.08,23.31]
[1719254485005,0.34,129.22,129.09,76.0561]
[1719254485209,0.34,129.22,129.09,23.31]
[1719254485383,0.17,129.22,129.1,45.0]
[1719254485589,36.50034984,129.23,129.1,68.31]
[1719254486198,44.23864984,129.23,129.1,45.0]
[1719254486506,36.50034984,129.23,129.12,23.31]
[1719254486804,6.03034984,129.23,129.13,68.31]
[1719254487005,4.82563017,129.24,129.13,68.31]
[1719254487398,0.8587808,129.24,129.13,68.31]
[1719254488213,0.34,129.23,129.13,45.0]
[1719254488791,0.34,129.23,129.11,6.1238]
[1719254488992,7.7393,129.22,129.08,25.8008]
[1719254489300,8.0794,129.21,129.08,49.1108]
[1719254490217,0.34,129.21,129.08,6.4338]
[1719254490402,30.47,129.19,129.05,49.1683]
[1719254490593,0.34,129.18,129.05,56.917]
[1719254490796,0.34,129.18,129.05,29.7973]
[1719254491000,0.34,129.18,129.02,25.4003]
[1719254491001,38.2129,129.15,129.02,25.4003]
[1719254491210,0.34,129.14,129.02,33.1509]
[1719254491406,0.34,129.14,129.02,56.4609]
[1719254491711,0.34,129.14,129.02,6.0247]
[1719254492111,7.7441,129.13,129.02,6.0247]
[1719254492312,0.34,129.12,129.02,6.0247]
[1719254492500,0.17,129.12,129.02,29.3347]
[1719254492695,0.17,129.12,129.02,37.085]
[1719254492891,3.96684937,129.17,129.07,23.31]
[1719254493111,39.8388962,129.22,129.08,23.31]
[1719254493314,7.7395,129.21,129.07,19.3689]
[1719254493503,47.5776962,129.22,129.08,31.057]
[1719254493814,59.1859962,129.22,129.04,7.7493]
[1719254494012,7.7411,129.18,129.05,45.0]
[1719254494202,7.7411,129.18,129.04,52.9191]
[1719254494203,38.2111,129.18,129.04,52.9191]
[1719254494398,30.47,129.18,129.05,42.6819]
[1719254494604,0.17,129.17,129.07,23.31]
[1719254494814,0.17,129.17,129.08,68.31]
[1719254494815,0.34,129.17,129.08,68.31]
[1719254495011,0.34,129.17,129.08,45.0]
[1719254495514,0.34,129.17,129.07,45.0]
[1719254495703,0.34,129.17,129.07,68.31]
[1719254496208,55.9288962,129.22,129.09,7.7464]
[1719254496209,9.3688962,129.22,129.09,7.7464]
[1719254496414,9.3688962,129.22,129.1,45.0]
[1719254496604,7.7394,129.21,129.1,45.0]
[1719254496804,9.3688962,129.22,129.1,45.0]
[1719254497129,17.1075962,129.22,129.1,45.0]
[1719254497308,39.8388962,129.22,129.1,45.0]
[1719254497508,47.5776962,129.22,129.1,45.0]
[1719254498104,0.34,129.21,129.1,45.0]
[1719254498418,17.4481962,129.21,129.1,45.0]
[1719254498817,56.2688962,129.21,129.08,15.0223]
[1719254499052,30.47,129.16,129.03,21.6944]
[1719254499336,45.34,129.15,129.03,21.6944]
[1719254499509,0.34,129.15,129.03,21.6944]
[1719254499711,7.7437,129.14,129.03,21.6944]
[1719254499931,0.34,129.13,129.03,45.0044]
[1719254500136,0.17,129.13,129.04,23.31]
[1719254500347,0.17,129.13,129.04,42.6834]
[1719254500523,0.17,129.13,129.04,23.31]
[1719254500728,0.17,129.13,129.05,45.0]
[1719254500927,0.17,129.13,129.06,7.7483]
[1719254501138,0.17,129.13,129.07,45.0]
[1719254501641,0.17,129.13,129.06,45.0]
[1719254501816,0.17,129.14,129.06,76.0581]
[1719254502449,7.92700679,129.19,129.09,7.7464]
[1719254502621,7.92700679,129.19,129.08,23.31]
[1719254502622,7.92700679,129.19,129.1,45.0]
[1719254503051,7.92700679,129.19,129.09,45.0]
[1719254503237,6.10582084,129.22,129.12,31.0541]
[1719254503435,10.227677,129.24,129.13,76.0539]
[1719254504322,10.227677,129.24,129.14,23.31]
[1719254504528,10.227677,129.24,129.13,64.36]
[1719254504529,10.227677,129.24,129.15,45.0]
[1719254504721,10.227677,129.24,129.13,64.36]
[1719254504940,16.38241833,129.24,129.13,45.0]
[1719254505339,16.38241833,129.24,129.12,76.2247]
[1719254505742,0.34,129.23,129.12,76.2247]
[1719254505946,0.34,129.23,129.12,45.0]
[1719254506148,9.7088962,129.23,129.11,45.0]
[1719254506453,17.4473962,129.23,129.11,45.0]
[1719254506950,7.7388,129.22,129.1,22.7194]
[1719254507137,38.5495,129.21,129.1,22.7194]
[1719254507327,7.7406,129.19,129.07,6.1113]
[1719254507526,0.34,129.18,129.07,6.1113]
[1719254507727,0.34,129.18,129.06,15.9047]
[1719254508547,0.34,129.18,129.06,39.2147]
[1719254509258,0.34,129.18,129.07,45.0]
[1719254510362,0.34,129.18,129.07,64.3691]
[1719254511131,0.34,129.18,129.07,95.4267]
[1719254511332,0.34,129.18,129.07,87.6791]
[1719254512030,0.34,129.18,129.08,23.31]
[1719254512236,0.34,129.18,129.09,52.7464]
[1719254512437,0.34,129.18,129.09,76.0561]
[1719254512631,30.47,129.21,129.11,23.31]
[1719254512942,3.96684937,129.22,129.12,45.0]
[1719254514958,0.17,129.21,129.12,45.0]
[1719254515259,0.34,129.21,129.12,45.0]
[1719254515464,0.17,129.21,129.12,68.31]
[1719254515641,0.17,129.21,129.12,76.0545]
[1719254515840,3.96684937,129.22,129.12,76.0545]
[1719254516543,3.96684937,129.22,129.12,68.31]
[1719254516861,3.96684937,129.22,129.12,45.0]
[1719254517202,0.34,129.21,129.12,45.0]
[1719254517372,8.0793,129.21,129.12,45.0]
[1719254517657,17.4481962,129.21,129.12,45.0]
[1719254517852,17.4481962,129.21,129.08,49.2896]
[1719254518050,9.3688962,129.2,129.08,49.2896]
[1719254518251,0.34,129.19,129.08,57.0365]
[1719254518455,0.34,129.19,129.08,25.9796]
[1719254518761,0.34,129.19,129.09,7.7463]
[1719254518962,0.34,129.19,129.1,7.7459]
[1719254519650,0.34,129.19,129.11,45.0]
[1719254520038,0.34,129.19,129.1,45.0]
[1719254520241,9.3688962,129.2,129.13,7.7438]
[1719254520434,9.3688962,129.2,129.14,45.0]
[1719254521047,7.01352213,129.24,129.14,52.7434]
[1719254521371,16.38241833,129.24,129.14,87.6673]
[1719254521550,16.38241833,129.24,129.14,45.0]
[1719254521858,16.38241833,129.24,129.13,68.31]
[1719254522238,16.38241833,129.24,129.14,31.0533]
[1719254522561,16.38241833,129.24,129.15,45.0]
[1719254522773,16.38241833,129.24,129.13,60.5801]
[1719254522774,24.11991833,129.24,129.13,45.0]
[1719254522972,30.47,129.22,129.08,6.613]
[1719254523179,77.03,129.22,129.08,6.613]
[1719254523340,7.9093,129.21,129.08,6.613]
[1719254523540,7.9101,129.2,129.07,19.3679]
[1719254523845,7.9101,129.2,129.06,47.6172]
[1719254523846,7.9105,129.19,129.06,47.6172]
[1719254524044,0.17,129.18,129.06,16.559]
[1719254524244,30.64,129.18,129.06,16.559]
[1719254524456,0.17,129.17,129.06,16.559]
[1719254524652,0.17,129.17,129.05,29.9597]
[1719254524859,0.17,129.17,129.05,23.31]
[1719254525560,0.17,129.17,129.05,31.0587]
[1719254525869,46.73,129.17,129.05,31.0587]
[1719254526049,0.17,129.16,129.05,31.0587]
[1719254526369,30.47,129.13,128.99,21.5334]
[1719254526585,38.2146,129.13,128.99,21.5334]
[1719254526881,5.74204683,129.12,128.99,21.5334]
[1719254527251,13.48694683,129.12,128.99,21.5334]
[1719254527452,7.7453,129.11,128.98,42.6917]
[1719254527657,0.34,129.1,128.98,42.6917]
[1719254528048,0.34,129.1,128.98,50.4446]
[1719254528263,0.34,129.11,128.98,50.4446]
[1719254528557,0.17,129.09,128.97,23.31]
[1719254528766,0.34,129.11,128.98,31.063]
[1719254529142,0.34,129.11,128.99,7.752]
[1719254529451,0.34,129.11,128.99,23.31]
[1719254529872,0.34,129.11,129.0,45.0]
[1719254530342,8.0853,129.11,129.0,45.0]
[1719254530540,8.0853,129.11,128.99,45.0]
[1719254531148,0.34,129.11,128.99,45.0]
[1719254531555,0.34,129.11,128.99,68.31]
[1719254531759,0.34,129.11,128.99,76.0625]
[1719254531962,0.34,129.11,128.99,68.31]
[1719254532194,8.0853,129.11,128.99,68.31]
[1719254533382,0.34,129.11,128.96,26.0056]
[1719254533593,7.7479,129.07,128.95,15.031]
[1719254533866,8.0889,129.06,128.93,6.2071]
[1719254534076,38.2193,129.05,128.93,6.2071]
[1719254534280,0.34,129.04,128.93,6.2071]
[1719254534455,0.34,129.04,128.91,46.1023]
[1719254534660,0.34,129.04,128.91,15.035]
[1719254534852,0.34,129.04,128.92,7.7566]
[1719254535053,0.34,129.04,128.91,22.7921]
[1719254535586,5.40204683,129.07,128.96,23.31]
[1719254535762,30.47,129.18,128.98,6.3347]
[1719254536067,30.47,129.18,129.04,27.1226]
[1719254536272,38.48841487,129.18,129.04,19.3735]
[1719254536569,8.01841487,129.18,129.05,31.0584]
[1719254536766,23.31,129.23,129.06,31.0581]
[1719254536767,7.7395,129.21,129.06,31.0581]
[1719254536953,15.75727987,129.2,129.06,31.0581]
[1719254537148,54.301,129.19,129.04,27.1228]
[1719254537358,46.56,129.19,129.04,42.6835]
[1719254537868,30.47,129.2,129.06,31.0579]
[1719254538073,13.98147776,129.21,129.07,45.0]
[1719254538260,13.98147776,129.21,129.07,52.7477]
[1719254538460,6.24197776,129.21,129.08,31.057]
[1719254538769,31.3287808,129.24,129.09,68.31]
[1719254538968,7.7381,129.23,129.1,19.364]
[1719254539367,93.64128545,129.24,129.11,45.0]
[1719254539662,54.2982,129.23,129.11,45.0]
[1719254540571,39.34368545,129.24,129.11,45.0]
[1719254540778,85.90368545,129.24,129.11,45.0]
[1719254540977,93.64168545,129.24,129.11,45.0]
[1719254541570,30.47,129.17,129.0,6.1977]
[1719254541755,30.47,129.17,129.03,7.7501]
[1719254541756,1.26814918,129.16,129.03,7.7501]
[1719254541962,1.68558431,129.16,129.03,23.31]
[1719254542150,93.24558431,129.16,129.03,23.31]
[1719254542354,48.24558431,129.16,129.03,31.06]
[1719254542960,78.52558431,129.16,129.03,31.06]
[1719254543162,78.52558431,129.16,129.02,19.3763]
[1719254543163,1.68558431,129.16,129.05,23.31]
[1719254543368,1.68558431,129.16,129.04,19.3728]
[1719254543369,1.68558431,129.16,129.06,45.0]
[1719254543563,1.68558431,129.16,129.05,45.0]
[1719254543770,1.18558431,129.16,129.05,45.0]
[1719254543975,1.18558431,129.16,129.05,68.31]
[1719254544154,1.18558431,129.16,129.05,45.0]
[1719254544355,1.18558431,129.16,129.04,76.0593]
[1719254544554,1.18558431,129.16,129.05,31.0588]
[1719254544770,1.18558431,129.16,129.06,45.0]
[1719254545278,0.84558431,129.16,129.07,7.7471]
[1719254545455,0.84558431,129.16,129.08,76.0567]
[1719254545776,0.84558431,129.16,129.08,45.0]
[1719254546260,46.56,129.15,129.01,19.377]
[1719254546460,54.303,129.15,129.01,27.1279]
[1719254546679,0.34,129.14,129.02,23.31]
[1719254547368,0.34,129.14,129.03,42.6846]
[1719254547557,0.34,129.14,129.05,7.7489]
[1719254547755,0.34,129.14,129.06,45.0]
[1719254548468,76.84,129.16,129.06,45.0]
[1719254548677,0.17,129.15,129.06,45.0]
[1719254549463,0.17,129.15,129.05,45.0]
[1719254549668,0.34,129.15,129.05,45.0]
[1719254549887,0.34,129.15,129.04,45.0]
[1719254550177,0.34,129.15,129.04,52.7494]
[1719254550475,0.34,129.15,129.04,76.0594]
[1719254550980,6.18495157,129.17,129.06,23.31]
[1719254551185,46.56,129.17,129.07,45.0]
[1719254552184,0.84558431,129.18,129.06,45.0]
[1719254552366,0.34,129.17,129.06,45.0]
[1719254552891,0.84558431,129.18,129.07,23.31]
[1719254553064,53.55426549,129.18,129.08,45.0]
[1719254554080,0.34,129.17,129.08,45.0]
[1719254554283,0.17,129.17,129.08,45.0]